[Event "Klatovy Open-B 2024"]
[Site "Klatovy"]
[Date "2024.07.02"]
[Round "4.10"]
[White "Masek, Jan"]
[Black "Stanke, Petr"]
[Result "1-0"]
[ECO "C06"]
[WhiteElo "1839"]
[BlackElo "1683"]
[Annotator "NA RC"]
[PlyCount "69"]
[EventDate "2024.06.21"]
[EventType "swiss"]
[EventCountry "CZE"]
[SourceTitle "playchess.com"]
[Source "ChessBase"]
[SourceQuality "1"]
[TimeControl "40/7200:0"]

1. e4 {[%emt 0:00:08]} e6 {[%emt 0:00:00]} 2. d4 {[%emt 0:00:00]} d5 {[%emt 0:00:00]} 3. Nd2 {[%emt 0:00:00]} Nf6 {[%emt 0:00:00]} 4. e5 {[%emt 0:00:00]} Nfd7 {[%emt 0:00:00]} 5. Bd3 {[%emt 0:00:00]} c5 {[%emt 0:00:00]} 6. c3 {[%emt 0:00:00]} Nc6 {[%emt 0:00:00]} 7. Ne2 {[%emt 0:02:09]} cxd4 {[%emt 0:02:40]} 8. cxd4 {[%emt 0:00:00]} Qb6 {[%emt 0:00:00]} 9. Nb3 {[%emt 0:00:00]} a5 {[%emt 0:03:18]} 10. O-O {[%emt 0:05:46]} a4 {[%emt 0:01:22]} 11. Nd2 {[%emt 0:00:00]} Nxd4 {[%emt 0:03:22]} 12. Nxd4 {[%emt 0:00:00]} Qxd4 {[%emt 0:00:00]} 13. Nf3 {[%emt 0:00:00]} Qb6 {[%emt 0:01:21]} 14. Qc2 {[%emt 0:02:13]} h6 {[%emt 0:05:38]} 15. h4 {[%emt 0:04:56]} Be7 {[%emt 0:10:24]} 16. Bh7 {[%emt 0:05:49]} Qc5 {[%emt 0:04:01]} 17. Qb1 {[%emt 0:01:07]} Nf8 {[%emt 0:07:37]} 18. Bd3 {[%emt 0:00:00]} b6 {[%emt 0:00:00]} 19. Be3 {[%emt 0:00:00]} Qc7 {[%emt 0:01:48]} 20. Rc1 {[%emt 0:00:14]} Bc5 {[%emt 0:00:13]} 21. b4 {[%emt 0:06:00]} axb3 {[%emt 0:00:00]} 22. axb3 {[%emt 0:00:00]} Rxa1 {[%emt 0:04:01]} 23. Qxa1 {[%emt 0:00:00]} Qd8 {[%emt 0:03:34]} 24. Bxc5 {[%emt 0:01:33]} bxc5 {[%emt 0:00:44]} 25. Rxc5 {[%emt 0:00:00]} Nd7 {[%emt 0:04:15]} 26. Rc6 {[%emt 0:15:52]} Nb8 {[%emt 0:15:28]} 27. Rd6 {[%emt 0:10:01]} Qc7 {[%emt 0:03:33]} 28. Bb5+ {[%emt 0:00:03]} Bd7 {[%emt 0:00:00]} 29. Bxd7+ {[%emt 0:05:11]} Nxd7 {[%emt 0:00:00]} 30. Qa4 {[%emt 0:04:33]} Ke7 {[%emt 0:01:36]} 31. Rc6 {[%emt 0:00:41]} Qb8 {[%emt 0:06:55]} 32. Qa3+ {[%emt 0:00:12]} Kd8 {[%emt 0:02:08]} 33. Ra6 {[%emt 0:03:30]} Nb6 {[%emt 0:05:57]} 34. Qa5 {[%emt 0:00:08]} Kc7 {[%emt 0:00:00]} 35. Qc5+ {[%emt 0:00:00]} 1-0

[Event "Klatovy Open-B 2024"]
[Site "Klatovy"]
[Date "2024.07.02"]
[Round "4.11"]
[White "Sova, Zdenek"]
[Black "Stastny, Matej"]
[Result "1/2-1/2"]
[ECO "A85"]
[WhiteElo "1822"]
[BlackElo "1674"]
[Annotator "NA RC"]
[PlyCount "68"]
[EventDate "2024.06.21"]
[EventType "swiss"]
[EventCountry "CZE"]
[SourceTitle "playchess.com"]
[Source "ChessBase"]
[SourceQuality "1"]
[TimeControl "40/7200:0"]

1. Nf3 {[%emt 0:00:00]} f5 {[%emt 0:00:00]} 2. d4 {[%emt 0:00:00]} e6 {[%emt 0:00:00]} 3. c4 {[%emt 0:00:00]} Nf6 {[%emt 0:00:00]} 4. Nc3 {[%emt 0:00:00]} Bb4 {[%emt 0:00:00]} 5. Bd2 {[%emt 0:02:05]} Bxc3 {[%emt 0:00:00]} 6. Bxc3 {[%emt 0:01:08]} b6 {[%emt 0:00:25]} 7. g3 {[%emt 0:00:45]} Bb7 {[%emt 0:01:02]} 8. Bg2 {[%emt 0:00:04]} Ne4 {[%emt 0:00:59]} 9. Bb4 {[%emt 0:00:46]} d6 {[%emt 0:01:41]} 10. O-O {[%emt 0:03:47]} O-O {[%emt 0:01:17]} 11. e3 {[%emt 0:06:50]} Nd7 {[%emt 0:02:56]} 12. Rc1 {[%emt 0:06:17]} Rb8 {[%emt 0:02:45]} 13. b3 {[%emt 0:01:33]} Qe8 {[%emt 0:02:31]} 14. Ne1 {[%emt 0:14:39]} Qg6 {[%emt 0:17:05]} 15. Nd3 {[%emt 0:01:46]} Rfe8 {[%emt 0:08:54]} 16. c5 {[%emt 0:04:46]} bxc5 {[%emt 0:02:49]} 17. dxc5 {[%emt 0:02:36]} Ba6 {[%emt 0:04:58]} 18. Ba3 {[%emt 0:11:05]} Ndxc5 {[%emt 0:04:10]} 19. Bxe4 {[%emt 0:03:57]} fxe4 {[%emt 0:04:54]} 20. Nf4 {[%emt 0:00:51]} Qf5 {[%emt 0:01:25]} 21. Re1 {[%emt 0:01:19]} g5 {[%emt 0:02:35]} 22. Bxc5 {[%emt 0:01:17]} gxf4 {[%emt 0:06:56]} 23. g4 {[%emt 0:00:00]} Qg5 {[%emt 0:02:31]} 24. exf4 {[%emt 0:00:27]} Qxf4 {[%emt 0:00:44]} 25. Bxa7 {[%emt 0:02:42]} Rbc8 {[%emt 0:00:32]} 26. Be3 {[%emt 0:00:40]} Qe5 {[%emt 0:01:01]} 27. Bd4 {[%emt 0:04:26]} Qf4 {[%emt 0:02:52]} 28. Re3 {[%emt 0:04:56]} Bd3 {[%emt 0:02:48]} 29. Rg3 {[%emt 0:41:18]} Rf8 {[%emt 0:42:10]} 30. Be3 {[%emt 0:00:00]} Qe5 {[%emt 0:00:00]} 31. Qd2 {[%emt 0:00:00]} Rf6 {[%emt 0:00:00]} 32. a4 {[%emt 0:00:00]} c5 {[%emt 0:00:00]} 33. Qa2 {[%emt 0:00:00]} Qd5 {[%emt 0:00:00]} 34. Qb2 {[%emt 0:00:00]} Rf7 {[%emt 0:00:00]} 1/2-1/2

[Event "Klatovy Open-B 2024"]
[Site "Klatovy"]
[Date "2024.07.02"]
[Round "4.12"]
[White "Mascak, Milan"]
[Black "Marko, Ondrej"]
[Result "1/2-1/2"]
[ECO "A01"]
[WhiteElo "1662"]
[BlackElo "1786"]
[Annotator "NA RC"]
[PlyCount "101"]
[EventDate "2024.06.21"]
[EventType "swiss"]
[EventCountry "CZE"]
[SourceTitle "playchess.com"]
[Source "ChessBase"]
[SourceQuality "1"]
[TimeControl "40/7200:0"]

1. b3 {[%emt 0:00:00]} e5 {[%emt 0:00:00]} 2. Bb2 {[%emt 0:00:00]} Nc6 {[%emt 0:00:00]} 3. e3 {[%emt 0:00:00]} d5 {[%emt 0:00:00]} 4. Nf3 {[%emt 0:00:00]} f6 {[%emt 0:10:29]} 5. c4 {[%emt 0:00:42]} Be6 {[%emt 0:05:03]} 6. cxd5 {[%emt 0:01:23]} Bxd5 {[%emt 0:00:00]} 7. Nc3 {[%emt 0:00:00]} Bf7 {[%emt 0:02:18]} 8. Bb5 {[%emt 0:00:57]} Nge7 {[%emt 0:01:33]} 9. Ba3 {[%emt 0:00:32]} a6 {[%emt 0:13:49]} 10. Be2 {[%emt 0:04:05]} b5 {[%emt 0:00:41]} 11. Bc5 {[%emt 0:02:38]} Qd7 {[%emt 0:17:55]} 12. O-O {[%emt 0:00:05]} O-O-O {[%emt 0:00:15]} 13. a4 {[%emt 0:01:50]} b4 {[%emt 0:00:00]} 14. Bxa6+ {[%emt 0:00:00]} Kb8 {[%emt 0:00:00]} 15. Nb5 {[%emt 0:11:07]} Nd5 {[%emt 0:04:24]} 16. Rc1 {[%emt 0:00:28]} Nc3 17. dxc3 {[%emt 0:02:07]} Qxd1 {[%emt 0:11:33]} 18. Rfxd1 {[%emt 0:00:20]} Rxd1+ {[%emt 0:00:00]} 19. Rxd1 {[%emt 0:00:00]} Bxc5 {[%emt 0:00:00]} 20. cxb4 {[%emt 0:04:11]} Nxb4 {[%emt 0:00:38]} 21. Rd7 {[%emt 0:00:05]} Bxb3 {[%emt 0:05:30]} 22. Nxc7 {[%emt 0:00:25]} Bb6 {[%emt 0:03:48]} 23. Ne6 {[%emt 0:01:27]} Nxa6 {[%emt 0:00:47]} 24. Nxg7 {[%emt 0:00:00]} Rd8 {[%emt 0:02:00]} 25. Rxd8+ {[%emt 0:00:24]} Bxd8 {[%emt 0:00:14]} 26. Nd2 {[%emt 0:00:24]} Bxa4 {[%emt 0:00:06]} 27. Ne6 {[%emt 0:00:00]} Be7 {[%emt 0:00:03]} 28. Ne4 {[%emt 0:00:00]} Bb3 {[%emt 0:03:36]} 29. Ng7 {[%emt 0:00:00]} Nc5 {[%emt 0:00:26]} 30. Nd2 {[%emt 0:00:00]} Bf7 {[%emt 0:02:45]} 31. Nf5 {[%emt 0:00:00]} Bf8 {[%emt 0:00:00]} 32. h3 {[%emt 0:00:12]} Kc7 {[%emt 0:00:17]} 33. Kh2 {[%emt 0:00:00]} Nd3 {[%emt 0:00:00]} 34. Kg3 {[%emt 0:00:00]} Be6 {[%emt 0:00:20]} 35. e4 {[%emt 0:00:08]} Bxf5 {[%emt 0:01:19]} 36. exf5 {[%emt 0:00:00]} Kc6 {[%emt 0:00:41]} 37. Ne4 {[%emt 0:00:12]} Be7 {[%emt 0:00:02]} 38. Kh4 {[%emt 0:00:01]} Kd5 {[%emt 0:00:59]} 39. f3 {[%emt 0:00:00]} Ne1 {[%emt 0:00:15]} 40. Kg3 {[%emt 0:01:12]} Kd4 {[%emt 0:00:40]} 41. Kf2 {[%emt 1:59:55]} Nd3+ {[%emt 1:59:48]} 42. Ke2 {[%emt 0:01:03]} Nf4+ {[%emt 0:01:03]} 43. Kf2 {[%emt 0:00:00]} Nd5 {[%emt 0:00:00]} 44. g4 {[%emt 0:00:00]} Nc3 {[%emt 0:02:03]} 45. Ng3 {[%emt 0:03:42]} Kd3 {[%emt 0:00:00]} 46. h4 {[%emt 0:00:00]} Bc5+ {[%emt 0:01:52]} 47. Kg2 {[%emt 0:00:00]} Ke3 {[%emt 0:00:59]} 48. g5 {[%emt 0:00:00]} fxg5 {[%emt 0:07:23]} 49. hxg5 {[%emt 0:00:00]} Nd5 {[%emt 0:00:00]} 50. Ne4 {[%emt 0:00:01]} Bf8 {[%emt 0:01:13]} 51. Kg3 {[%emt 0:03:38]} 1/2-1/2

[Event "Klatovy Open-B 2024"]
[Site "Klatovy"]
[Date "2024.07.02"]
[Round "4.13"]
[White "Trejbal, Jindrich"]
[Black "Lickova, Anna"]
[Result "1/2-1/2"]
[ECO "C50"]
[WhiteElo "1953"]
[BlackElo "1725"]
[Annotator "NA RC"]
[PlyCount "37"]
[EventDate "2024.06.21"]
[EventType "swiss"]
[EventCountry "CZE"]
[SourceTitle "playchess.com"]
[Source "ChessBase"]
[SourceQuality "1"]
[TimeControl "40/7200:0"]

1. e4 {[%emt 0:00:00]} e5 {[%emt 0:00:00]} 2. Nf3 {[%emt 0:00:00]} Nc6 {[%emt 0:00:00]} 3. Bc4 {[%emt 0:00:00]} Bc5 {[%emt 0:00:00]} 4. d3 {[%emt 0:00:00]} d6 {[%emt 0:00:00]} 5. Nc3 {[%emt 0:00:00]} h6 {[%emt 0:00:00]} 6. Na4 {[%emt 0:00:00]} Bb6 {[%emt 0:00:00]} 7. a3 {[%emt 0:00:00]} Nf6 {[%emt 0:00:00]} 8. h3 {[%emt 0:00:00]} Be6 {[%emt 0:00:00]} 9. Bxe6 {[%emt 0:01:12]} fxe6 {[%emt 0:00:00]} 10. Nxb6 {[%emt 0:00:15]} axb6 {[%emt 0:00:00]} 11. Be3 {[%emt 0:00:56]} O-O {[%emt 0:00:00]} 12. O-O {[%emt 0:02:20]} d5 {[%emt 0:02:07]} 13. exd5 {[%emt 0:01:29]} exd5 {[%emt 0:00:00]} 14. Re1 {[%emt 0:02:56]} e4 {[%emt 0:05:15]} 15. dxe4 {[%emt 0:03:38]} Nxe4 {[%emt 0:00:10]} 16. Qd3 {[%emt 0:01:24]} Nc5 {[%emt 0:07:33]} 17. Bxc5 {[%emt 0:02:13]} bxc5 {[%emt 0:00:00]} 18. Rad1 {[%emt 0:00:35]} d4 {[%emt 0:02:46]} 19. Qb3+ {[%emt 0:03:56]} 1/2-1/2

[Event "Klatovy Open-B 2024"]
[Site "Klatovy"]
[Date "2024.07.02"]
[Round "4.14"]
[White "Cervenka, Jakub"]
[Black "Vavrousek, Petr"]
[Result "0-1"]
[ECO "C01"]
[WhiteElo "1638"]
[BlackElo "1710"]
[Annotator "NA RC"]
[PlyCount "110"]
[EventDate "2024.06.21"]
[EventType "swiss"]
[EventCountry "CZE"]
[SourceTitle "playchess.com"]
[Source "ChessBase"]
[SourceQuality "1"]
[TimeControl "40/7200:0"]

1. e4 {[%emt 0:00:00]} e6 {[%emt 0:00:44]} 2. d4 {[%emt 0:00:00]} d5 {[%emt 0:00:00]} 3. exd5 {[%emt 0:00:00]} exd5 {[%emt 0:00:00]} 4. Bd3 {[%emt 0:00:00]} Bd6 {[%emt 0:00:00]} 5. Nf3 {[%emt 0:00:00]} Nf6 {[%emt 0:00:00]} 6. h3 {[%emt 0:00:00]} O-O {[%emt 0:00:00]} 7. O-O {[%emt 0:00:00]} Nbd7 {[%emt 0:01:16]} 8. Bg5 {[%emt 0:03:32]} c6 {[%emt 0:00:00]} 9. Nbd2 {[%emt 0:06:02]} Qc7 {[%emt 0:00:24]} 10. Nb3 {[%emt 0:04:54]} b6 {[%emt 0:08:20]} 11. c3 {[%emt 0:10:41]} Bb7 {[%emt 0:04:29]} 12. Re1 {[%emt 0:02:54]} Rae8 {[%emt 0:01:44]} 13. Qc2 {[%emt 0:09:53]} h6 {[%emt 0:01:07]} 14. Be3 {[%emt 0:00:24]} c5 {[%emt 0:00:18]} 15. Bf1 {[%emt 0:03:22]} Ne4 {[%emt 0:13:05]} 16. Nbd2 {[%emt 0:07:54]} Ndf6 {[%emt 0:00:29]} 17. Bd3 {[%emt 0:01:03]} Re7 {[%emt 0:06:41]} 18. Re2 {[%emt 0:03:01]} Rfe8 {[%emt 0:00:00]} 19. Bb5 {[%emt 0:08:02]} Rc8 {[%emt 0:04:11]} 20. Bd3 {[%emt 0:07:20]} Bf4 {[%emt 0:13:10]} 21. Bxf4 {[%emt 0:11:49]} Qxf4 {[%emt 0:00:00]} 22. dxc5 {[%emt 0:02:48]} bxc5 {[%emt 0:00:18]} 23. Bxe4 {[%emt 0:05:30]} dxe4 {[%emt 0:00:36]} 24. Qa4 {[%emt 0:13:53]} Qc7 {[%emt 0:08:06]} 25. Nh2 {[%emt 0:00:34]} Bc6 {[%emt 0:00:24]} 26. Qc2 {[%emt 0:00:06]} Qb7 {[%emt 0:00:00]} 27. Qb3 {[%emt 0:00:31]} Qa8 {[%emt 0:00:56]} 28. Re3 {[%emt 0:05:40]} Rd8 {[%emt 0:01:27]} 29. Ndf1 {[%emt 0:01:55]} Rd3 {[%emt 0:02:03]} 30. Rxd3 {[%emt 0:03:13]} exd3 {[%emt 0:00:00]} 31. Ne3 {[%emt 0:00:00]} Nd5 {[%emt 0:02:23]} 32. Nhf1 {[%emt 0:00:00]} Nf4 {[%emt 0:00:00]} 33. f3 {[%emt 0:01:47]} Qe8 {[%emt 0:01:17]} 34. Nf5 {[%emt 0:02:11]} Re2 {[%emt 0:01:04]} 35. Nd6 {[%emt 0:00:21]} Rxg2+ {[%emt 0:00:10]} 36. Kh1 {[%emt 0:00:00]} Qd7 {[%emt 0:00:02]} 37. Qb8+ {[%emt 0:00:00]} Kh7 {[%emt 0:00:00]} 38. Qc8 {[%emt 0:00:07]} Qxc8 {[%emt 0:02:06]} 39. Nxc8 {[%emt 0:00:00]} Bxf3 {[%emt 0:00:00]} 40. Ne3 {[%emt 0:00:00]} Re2+ {[%emt 0:00:00]} 41. Kg1 {[%emt 1:59:32]} Rxe3 {[%emt 1:59:12]} 42. Kf2 {[%emt 0:00:00]} Re2+ {[%emt 0:02:28]} 43. Kxf3 {[%emt 0:00:00]} g5 {[%emt 0:00:01]} 44. h4 {[%emt 0:00:00]} Rxb2 {[%emt 0:00:00]} 45. hxg5 {[%emt 0:00:12]} hxg5 {[%emt 0:00:00]} 46. Kg4 {[%emt 0:00:05]} Kg6 {[%emt 0:00:27]} 47. Ne7+ {[%emt 0:00:00]} Kf6 {[%emt 0:00:00]} 48. Ng8+ {[%emt 0:00:00]} Kg7 {[%emt 0:00:00]} 49. Ne7 {[%emt 0:00:00]} f6 {[%emt 0:04:42]} 50. Nf5+ {[%emt 0:00:00]} Kg6 {[%emt 0:01:03]} 51. Ng3 {[%emt 0:00:13]} d2 {[%emt 0:00:00]} 52. Rd1 {[%emt 0:00:00]} Rxa2 {[%emt 0:00:00]} 53. Ne4 {[%emt 0:00:00]} f5+ {[%emt 0:00:00]} 54. Kf3 {[%emt 0:00:00]} fxe4+ {[%emt 0:00:00]} 55. Kxe4 {[%emt 0:00:00]} Rc2 {[%emt 0:35:17]} 0-1

[Event "Klatovy Open-B 2024"]
[Site "Klatovy"]
[Date "2024.07.03"]
[Round "5.1"]
[White "Kaderabek, Jiri"]
[Black "Vojta, Radek"]
[Result "1/2-1/2"]
[ECO "B15"]
[WhiteElo "1984"]
[BlackElo "1693"]
[Annotator "NA RC"]
[PlyCount "29"]
[EventDate "2024.06.21"]
[EventType "swiss"]
[EventCountry "CZE"]
[SourceTitle "playchess.com"]
[Source "ChessBase"]
[SourceQuality "1"]
[TimeControl "40/7200:0"]

1. e4 {[%emt 0:05:14]} c6 {[%emt 0:00:00]} 2. d4 {[%emt 0:00:01]} d5 {[%emt 0:00:00]} 3. Nc3 {[%emt 0:00:00]} dxe4 {[%emt 0:00:00]} 4. Nxe4 {[%emt 0:00:00]} Nf6 {[%emt 0:00:00]} 5. Nxf6+ {[%emt 0:00:00]} exf6 {[%emt 0:00:00]} 6. Nf3 {[%emt 0:00:00]} Bd6 {[%emt 0:00:00]} 7. Be3 {[%emt 0:02:17]} O-O {[%emt 0:00:00]} 8. Qd2 {[%emt 0:00:00]} Re8 {[%emt 0:00:49]} 9. O-O-O {[%emt 0:00:00]} Be6 {[%emt 0:02:30]} 10. c4 {[%emt 0:02:48]} Nd7 {[%emt 0:04:51]} 11. h3 {[%emt 0:10:02]} Qc7 {[%emt 0:09:05]} 12. Kb1 {[%emt 0:00:51]} Reb8 {[%emt 0:04:31]} 13. g4 {[%emt 0:08:05]} Rd8 {[%emt 0:22:03]} 14. Be2 {[%emt 0:09:22]} Nf8 {[%emt 0:01:33]} 15. Qc1 {[%emt 0:06:29]} 1/2-1/2

[Event "Klatovy Open-B 2024"]
[Site "Klatovy"]
[Date "2024.07.03"]
[Round "5.2"]
[White "Janouskova, Eliska"]
[Black "Slansky, Jachym"]
[Result "0-1"]
[ECO "B50"]
[WhiteElo "1670"]
[BlackElo "1665"]
[Annotator "NA RC"]
[PlyCount "64"]
[EventDate "2024.06.21"]
[EventType "swiss"]
[EventCountry "CZE"]
[SourceTitle "playchess.com"]
[Source "ChessBase"]
[SourceQuality "1"]
[TimeControl "40/7200:0"]

1. e4 {[%emt 0:00:00]} c5 {[%emt 0:00:00]} 2. Nf3 {[%emt 0:00:00]} d6 {[%emt 0:00:00]} 3. b3 {[%emt 0:00:00]} Nf6 {[%emt 0:00:22]} 4. d3 {[%emt 0:00:00]} e5 {[%emt 0:06:27]} 5. Bb2 {[%emt 0:00:30]} Be7 {[%emt 0:01:05]} 6. g3 {[%emt 0:00:08]} O-O {[%emt 0:01:31]} 7. Bg2 {[%emt 0:00:07]} Bd7 {[%emt 0:02:02]} 8. c4 {[%emt 0:01:12]} Bc6 {[%emt 0:09:31]} 9. Nc3 {[%emt 0:03:47]} Nbd7 {[%emt 0:08:27]} 10. O-O {[%emt 0:02:31]} a6 {[%emt 0:02:26]} 11. Qe2 {[%emt 0:04:08]} b5 {[%emt 0:08:24]} 12. Nh4 {[%emt 0:05:39]} b4 {[%emt 0:08:32]} 13. Nd1 {[%emt 0:02:55]} Qb6 {[%emt 0:08:10]} 14. Nf5 {[%emt 0:04:50]} Rfe8 {[%emt 0:00:00]} 15. Nde3 {[%emt 0:02:12]} Bf8 {[%emt 0:01:11]} 16. f4 {[%emt 0:05:43]} a5 {[%emt 0:04:29]} 17. Nh4 {[%emt 0:05:10]} a4 {[%emt 0:00:51]} 18. f5 {[%emt 0:01:55]} Ra7 {[%emt 0:09:09]} 19. g4 {[%emt 0:01:25]} h6 {[%emt 0:08:44]} 20. Nf3 {[%emt 0:03:18]} Rea8 {[%emt 0:03:14]} 21. h4 {[%emt 0:03:37]} axb3 {[%emt 0:02:46]} 22. axb3 {[%emt 0:00:00]} Rxa1 {[%emt 0:00:19]} 23. Bxa1 {[%emt 0:00:15]} Ra3 {[%emt 0:00:37]} 24. g5 {[%emt 0:03:14]} Nh5 {[%emt 0:00:00]} 25. Qd1 {[%emt 0:07:13]} Ra2 {[%emt 0:07:56]} 26. Nd2 {[%emt 0:07:07]} Nf4 {[%emt 0:04:00]} 27. gxh6 {[%emt 0:01:36]} gxh6 {[%emt 0:02:18]} 28. Qg4+ {[%emt 0:06:00]} Bg7 {[%emt 0:00:00]} 29. Nf3 {[%emt 0:01:08]} Qa6 {[%emt 0:01:33]} 30. Nd5 {[%emt 0:07:44]} Bxd5 {[%emt 0:00:20]} 31. exd5 {[%emt 0:00:00]} Nf6 {[%emt 0:00:00]} 32. Qg3 {[%emt 0:00:41]} Ne2+ {[%emt 0:00:00]} 0-1

[Event "Klatovy Open-B 2024"]
[Site "Klatovy"]
[Date "2024.07.03"]
[Round "5.3"]
[White "Koper, Stefan"]
[Black "Brychta, David"]
[Result "1/2-1/2"]
[ECO "D00"]
[WhiteElo "1845"]
[BlackElo "2124"]
[Annotator "NA RC"]
[PlyCount "115"]
[EventDate "2024.06.21"]
[EventType "swiss"]
[EventCountry "CZE"]
[SourceTitle "playchess.com"]
[Source "ChessBase"]
[SourceQuality "1"]
[TimeControl "40/7200:0"]

1. d4 {[%emt 0:00:00]} Nf6 {[%emt 0:00:00]} 2. Nc3 {[%emt 0:00:00]} d5 {[%emt 0:00:00]} 3. Bf4 {[%emt 0:00:00]} e6 {[%emt 0:00:00]} 4. e3 {[%emt 0:00:00]} c5 {[%emt 0:00:48]} 5. Bb5+ {[%emt 0:00:00]} Bd7 {[%emt 0:01:05]} 6. Bxd7+ {[%emt 0:00:00]} Qxd7 {[%emt 0:02:05]} 7. Nf3 {[%emt 0:00:00]} Nc6 {[%emt 0:00:00]} 8. a3 {[%emt 0:01:54]} cxd4 {[%emt 0:00:00]} 9. exd4 {[%emt 0:00:00]} Be7 {[%emt 0:00:00]} 10. O-O {[%emt 0:00:59]} O-O {[%emt 0:00:00]} 11. h3 {[%emt 0:00:00]} a6 {[%emt 0:00:00]} 12. Re1 {[%emt 0:03:34]} b5 {[%emt 0:00:56]} 13. Ne5 {[%emt 0:02:40]} Qb7 {[%emt 0:02:27]} 14. Nxc6 {[%emt 0:00:14]} Qxc6 {[%emt 0:00:00]} 15. Bg5 {[%emt 0:00:00]} Qb7 {[%emt 0:05:24]} 16. Bxf6 {[%emt 0:00:00]} Bxf6 {[%emt 0:00:00]} 17. Ne2 {[%emt 0:00:00]} Rfc8 {[%emt 0:02:09]} 18. c3 {[%emt 0:00:00]} a5 {[%emt 0:00:00]} 19. Qb3 {[%emt 0:02:50]} Be7 {[%emt 0:03:06]} 20. Nf4 {[%emt 0:02:28]} Bd6 {[%emt 0:00:24]} 21. Nd3 {[%emt 0:00:00]} Rc4 {[%emt 0:00:57]} 22. f4 {[%emt 0:02:05]} Qc7 {[%emt 0:07:06]} 23. Rf1 {[%emt 0:06:39]} Rb8 {[%emt 0:00:16]} 24. Rac1 {[%emt 0:01:26]} Qe7 {[%emt 0:02:22]} 25. Rce1 {[%emt 0:00:39]} Qh4 {[%emt 0:10:08]} 26. Ne5 {[%emt 0:00:29]} Bxe5 {[%emt 0:03:49]} 27. fxe5 {[%emt 0:00:00]} Qg3 {[%emt 0:03:13]} 28. Rd1 {[%emt 0:02:39]} Qg6 {[%emt 0:02:12]} 29. Rf3 {[%emt 0:04:58]} h5 {[%emt 0:00:00]} 30. Rdf1 {[%emt 0:00:04]} Rb7 {[%emt 0:01:27]} 31. Qd1 {[%emt 0:02:27]} b4 {[%emt 1:10:06]} 32. axb4 {[%emt 0:00:00]} axb4 {[%emt 0:00:00]} 33. Qa4 {[%emt 0:00:00]} bxc3 {[%emt 0:00:00]} 34. Qa8+ {[%emt 0:00:00]} Kh7 {[%emt 0:00:00]} 35. Qxb7 {[%emt 0:00:00]} cxb2 {[%emt 0:00:00]} 36. Qxb2 {[%emt 0:00:00]} Rc2 {[%emt 0:00:00]} 37. Qxc2 {[%emt 0:00:00]} Qxc2 {[%emt 0:00:00]} 38. Rxf7 {[%emt 0:00:00]} Kg6 {[%emt 0:00:00]} 39. Re7 {[%emt 0:00:22]} Qd2 {[%emt 0:00:00]} 40. Rxe6+ {[%emt 0:00:27]} Kg5 {[%emt 0:00:00]} 41. Rf7 {[%emt 2:06:21]} Qxd4+ {[%emt 0:52:10]} 42. Kh2 {[%emt 0:00:10]} g6 {[%emt 0:00:15]} 43. Rff6 {[%emt 0:00:00]} Qe4 {[%emt 0:00:22]} 44. Rxg6+ {[%emt 0:15:10]} Qxg6 {[%emt 0:07:08]} 45. Rxg6+ {[%emt 0:03:20]} Kxg6 {[%emt 0:00:00]} 46. Kg3 {[%emt 0:00:00]} Kf5 {[%emt 0:00:21]} 47. e6 {[%emt 0:00:35]} Kxe6 {[%emt 0:02:43]} 48. Kf4 {[%emt 0:00:00]} h4 {[%emt 0:03:49]} 49. g3 {[%emt 0:00:00]} hxg3 {[%emt 0:05:04]} 50. Kxg3 {[%emt 0:00:00]} Kf5 {[%emt 0:00:34]} 51. Kf3 {[%emt 0:00:00]} d4 {[%emt 0:00:00]} 52. Ke2 {[%emt 0:00:00]} Kg5 {[%emt 0:00:00]} 53. Kd3 {[%emt 0:00:00]} Kh4 {[%emt 0:00:00]} 54. Kd2 {[%emt 0:00:00]} Kxh3 {[%emt 0:00:00]} 55. Kd3 {[%emt 0:00:00]} Kg3 {[%emt 0:00:00]} 56. Ke4 {[%emt 0:00:00]} Kf2 {[%emt 0:00:00]} 57. Kd3 {[%emt 0:00:00]} Kf3 {[%emt 0:00:00]} 58. Kxd4 {[%emt 0:00:00]} 1/2-1/2